[Event "4NCL 2021-22"]
[Site "England"]
[Date "2022.03.27"]
[Round "6.47"]
[White "Ledger, Stephen C"]
[Black "Schwartz, Julius"]
[Result "0-1"]
[ECO "A45"]
[WhiteElo "2171"]
[BlackElo "2088"]
[Annotator "NA"]
[PlyCount "80"]
[EventDate "2021.11.27"]
[EventType "team-tourn"]
[EventCountry "ENG"]
[SourceTitle "playchess.com"]
[Source "ChessBase"]
[SourceQuality "1"]
[TimeControl "40/6000+30:3000+30"]

1. d4 {[%emt 0:00:04]} Nf6 {[%emt 0:12:17]} 2. Bg5 {[%emt 0:03:55]} Ne4 {[%emt 0:00:47]} 3. Bf4 {[%emt 0:00:22]} d5 {[%emt 0:00:13]} 4. e3 {[%emt 0:00:50]} Bf5 {[%emt 0:16:55]} 5. Nd2 {[%emt 0:07:18]} e6 {[%emt 0:00:19]} 6. Nxe4 {[%emt 0:02:30]} Bxe4 {[%emt 0:00:17]} 7. Nf3 {[%emt 0:01:46]} Nd7 {[%emt 0:01:26]} 8. Bd3 {[%emt 0:04:42]} Nf6 {[%emt 0:05:37]} 9. O-O {[%emt 0:02:37]} Bd6 {[%emt 0:00:36]} 10. Ne5 {[%emt 0:06:03]} O-O {[%emt 0:00:24]} 11. Bg5 {[%emt 0:04:16]} Be7 {[%emt 0:08:32]} 12. f3 {[%emt 0:10:19]} Bxd3 {[%emt 0:03:40]} 13. Qxd3 {[%emt 0:00:33]} h6 {[%emt 0:00:24]} 14. Bh4 {[%emt 0:03:26]} a6 {[%emt 0:05:08]} 15. c3 {[%emt 0:05:53]} c5 {[%emt 0:00:48]} 16. Rae1 {[%emt 0:05:11]} Rc8 {[%emt 0:12:09]} 17. Re2 {[%emt 0:05:34]} Nd7 {[%emt 0:03:34]} 18. Nxd7 {[%emt 0:08:56]} Qxd7 {[%emt 0:00:48]} 19. Bxe7 {[%emt 0:00:48]} Qxe7 {[%emt 0:00:06]} 20. e4 {[%emt 0:03:03]} Rfd8 {[%emt 0:07:00]} 21. exd5 {[%emt 0:14:05]} Rxd5 {[%emt 0:00:11]} 22. Qc4 {[%emt 0:02:19]} Rcd8 {[%emt 0:03:51]} 23. dxc5 {[%emt 0:02:00]} Rxc5 {[%emt 0:00:21]} 24. Qe4 {[%emt 0:01:11]} Rcd5 {[%emt 0:05:05]} 25. Rfe1 {[%emt 0:01:19]} Qc7 {[%emt 0:02:08]} 26. g3 {[%emt 0:04:06]} Rd2 {[%emt 0:05:54]} 27. Qe3 {[%emt 0:03:04]} R2d3 {[%emt 0:00:37]} 28. Qf2 {[%emt 0:00:58]} Qc4 {[%emt 0:05:32]} 29. a3 {[%emt 0:01:37]} Qb3 {[%emt 0:01:06]} 30. Kg2 {[%emt 0:01:57]} Qb5 {[%emt 0:02:06]} 31. Rc1 {[%emt 0:02:54]} Qg5 {[%emt 0:01:54]} 32. Rce1 {[%emt 0:00:26]} Qf5 {[%emt 0:00:25]} 33. Re5 {[%emt 0:01:10]} Qg6 {[%emt 0:00:18]} 34. R5e3 {[%emt 0:00:26]} Rd2 {[%emt 0:00:19]} 35. R1e2 {[%emt 0:01:03]} Qc2 {[%emt 0:00:12]} 36. Kh3 {[%emt 0:01:08]} Qxb2 {[%emt 0:00:49]} 37. f4 {[%emt 0:00:34]} Rxe2 {[%emt 0:00:17]} 38. Qxe2 {[%emt 0:00:20]} Rd2 {[%emt 0:00:09]} 39. Qc4 {[%emt 0:00:28]} Rxh2+ {[%emt 0:00:10]} 40. Kg4 {[%emt 0:00:07]} f5+ {[%emt 0:00:33]} 0-1

[Event "4NCL 2021-22"]
[Site "England"]
[Date "2022.03.27"]
[Round "6.48"]
[White "Roy, Ali"]
[Black "Gamal, Alaa"]
[Result "1-0"]
[ECO "A08"]
[WhiteElo "1883"]
[BlackElo "1701"]
[Annotator "NA"]
[PlyCount "73"]
[EventDate "2021.11.27"]
[EventType "team-tourn"]
[EventCountry "ENG"]
[SourceTitle "playchess.com"]
[Source "ChessBase"]
[SourceQuality "1"]
[TimeControl "40/6000+30:3000+30"]

1. Nf3 {[%emt 0:00:03]} c5 {[%emt 0:05:50]} 2. g3 {[%emt 0:00:10]} g6 {[%emt 0:00:11]} 3. Bg2 {[%emt 0:00:07]} Bg7 {[%emt 0:00:01]} 4. O-O {[%emt 0:00:17]} d5 {[%emt 0:00:44]} 5. d3 {[%emt 0:00:27]} Nf6 {[%emt 0:02:17]} 6. Nbd2 {[%emt 0:00:37]} O-O {[%emt 0:01:36]} 7. e4 {[%emt 0:02:04]} e6 {[%emt 0:00:49]} 8. c3 {[%emt 0:06:38]} d4 {[%emt 0:11:41]} 9. cxd4 {[%emt 0:03:10]} cxd4 {[%emt 0:00:12]} 10. a4 {[%emt 0:00:41]} Nc6 {[%emt 0:03:29]} 11. Nc4 {[%emt 0:02:04]} h6 {[%emt 0:06:52]} 12. b3 {[%emt 0:11:10]} Re8 {[%emt 0:05:36]} 13. Ba3 {[%emt 0:09:13]} e5 {[%emt 0:08:58]} 14. Nd6 {[%emt 0:01:11]} Re6 {[%emt 0:05:06]} 15. Nxc8 {[%emt 0:00:16]} Rxc8 {[%emt 0:02:08]} 16. Bh3 {[%emt 0:00:13]} Re8 {[%emt 0:01:47]} 17. Bxc8 {[%emt 0:00:38]} Qxc8 {[%emt 0:00:02]} 18. Nd2 {[%emt 0:05:20]} Qh3 {[%emt 0:00:15]} 19. Qf3 {[%emt 0:01:17]} h5 {[%emt 0:08:59]} 20. Nc4 {[%emt 0:06:32]} Re6 {[%emt 0:09:00]} 21. b4 {[%emt 0:05:52]} h4 {[%emt 0:00:52]} 22. Qg2 {[%emt 0:01:17]} Qg4 {[%emt 0:01:24]} 23. f3 {[%emt 0:11:43]} Qh5 {[%emt 0:01:47]} 24. g4 {[%emt 0:04:54]} Qh7 {[%emt 0:00:42]} 25. b5 {[%emt 0:04:03]} Nd8 {[%emt 0:01:24]} 26. h3 {[%emt 0:03:52]} Ne8 {[%emt 0:00:54]} 27. f4 {[%emt 0:05:05]} exf4 {[%emt 0:06:29]} 28. Rxf4 {[%emt 0:00:26]} b6 {[%emt 0:15:52]} 29. Raf1 {[%emt 0:01:06]} g5 {[%emt 0:01:10]} 30. Rf5 {[%emt 0:03:19]} Qg6 {[%emt 0:00:28]} 31. Qh2 {[%emt 0:04:45]} Bf8 {[%emt 0:04:29]} 32. Bxf8 {[%emt 0:00:44]} Kxf8 {[%emt 0:00:01]} 33. Qb8 {[%emt 0:00:58]} Ke7 {[%emt 0:01:31]} 34. Rd5 {[%emt 0:02:37]} Nd6 {[%emt 0:01:00]} 35. Qc7+ {[%emt 0:00:15]} Kf8 {[%emt 0:02:02]} 36. Rxd6 {[%emt 0:01:01]} Rxd6 {[%emt 0:00:18]} 37. Qxd6+ {[%emt 0:00:00]} 1-0

[Event "4NCL 2021-22"]
[Site "England"]
[Date "2022.03.27"]
[Round "6.49"]
[White "Cumming, Rhys"]
[Black "Bisby, Daniel L"]
[Result "1-0"]
[ECO "B09"]
[WhiteElo "2360"]
[BlackElo "2296"]
[Annotator "NA"]
[PlyCount "85"]
[EventDate "2021.11.27"]
[EventType "team-tourn"]
[EventCountry "ENG"]
[SourceTitle "playchess.com"]
[Source "ChessBase"]
[SourceQuality "1"]
[TimeControl "40/6000+30:3000+30"]

1. d4 {[%emt 0:05:41]} d6 {[%emt 0:03:25]} 2. e4 {[%emt 0:01:48]} g6 {[%emt 0:01:17]} 3. Nc3 {[%emt 0:06:45]} Bg7 {[%emt 0:01:30]} 4. f4 {[%emt 0:06:22]} Nf6 {[%emt 0:00:56]} 5. Nf3 {[%emt 0:01:49]} O-O {[%emt 0:00:40]} 6. Bd3 {[%emt 0:01:46]} Nc6 {[%emt 0:00:33]} 7. e5 {[%emt 0:06:11]} dxe5 {[%emt 0:03:01]} 8. fxe5 {[%emt 0:08:39]} Nh5 {[%emt 0:04:06]} 9. Be3 {[%emt 0:06:18]} f6 {[%emt 0:06:57]} 10. exf6 {[%emt 0:05:41]} exf6 {[%emt 0:07:04]} 11. Qd2 {[%emt 0:08:25]} f5 {[%emt 0:06:33]} 12. O-O-O {[%emt 0:06:55]} f4 {[%emt 0:04:44]} 13. Bf2 {[%emt 0:00:57]} Kh8 $16 {[%emt 0:06:15]} 14. Rhe1 {[%emt 0:16:16]} Bg4 {[%emt 0:09:14]} 15. Be2 {[%emt 0:02:01]} Qd6 {[%emt 0:13:14]} 16. d5 {[%emt 0:03:00]} Bxf3 {[%emt 0:04:07]} 17. Bxf3 {[%emt 0:01:48]} Ne5 {[%emt 0:00:25]} 18. Bd4 {[%emt 0:08:10]} Nc4 {[%emt 0:11:44]} 19. Bxg7+ {[%emt 0:00:19]} Nxg7 {[%emt 0:00:10]} 20. Qd4 {[%emt 0:00:17]} Ne3 {[%emt 0:01:45]} 21. Rd3 {[%emt 0:02:05]} Rae8 {[%emt 0:05:33]} 22. Ne4 {[%emt 0:01:53]} Qe5 {[%emt 0:03:01]} 23. Qxe5 {[%emt 0:01:29]} Rxe5 {[%emt 0:00:05]} 24. Nc5 {[%emt 0:01:43]} Rfe8 {[%emt 0:07:22]} 25. Nxb7 {[%emt 0:01:00]} Ngf5 {[%emt 0:00:30]} 26. d6 {[%emt 0:01:52]} cxd6 {[%emt 0:00:41]} 27. Nxd6 {[%emt 0:00:17]} Nxd6 {[%emt 0:01:43]} 28. Rxd6 {[%emt 0:00:03]} g5 {[%emt 0:00:54]} 29. h3 {[%emt 0:00:27]} R8e7 {[%emt 0:03:31]} 30. b3 {[%emt 0:00:37]} a5 {[%emt 0:00:35]} 31. Re2 {[%emt 0:01:43]} a4 {[%emt 0:01:29]} 32. Red2 {[%emt 0:00:31]} Rc5 {[%emt 0:01:52]} 33. Rc6 {[%emt 0:01:11]} Rxc6 {[%emt 0:00:36]} 34. Bxc6 {[%emt 0:00:02]} a3 {[%emt 0:00:31]} 35. Bf3 {[%emt 0:01:01]} Kg7 {[%emt 0:00:34]} 36. c4 {[%emt 0:01:15]} Nf5 {[%emt 0:01:05]} 37. c5 {[%emt 0:01:14]} Re1+ {[%emt 0:00:10]} 38. Rd1 {[%emt 0:00:52]} Re3 {[%emt 0:00:26]} 39. c6 {[%emt 0:00:40]} Kf6 {[%emt 0:01:02]} 40. Kb1 {[%emt 0:00:37]} Rc3 {[%emt 0:00:30]} 41. Rc1 {[%emt 0:05:01]} Rxc1+ {[%emt 0:03:02]} 42. Kxc1 {[%emt 0:00:04]} Ke5 {[%emt 0:00:05]} 43. c7 {[%emt 0:01:36]} 1-0

[Event "4NCL 2021-22"]
[Site "England"]
[Date "2022.03.27"]
[Round "6.50"]
[White "Tanmay Chopra"]
[Black "Forster, Matthew"]
[Result "1-0"]
[ECO "D20"]
[WhiteElo "2313"]
[BlackElo "2060"]
[Annotator "NA"]
[PlyCount "117"]
[EventDate "2021.11.27"]
[EventType "team-tourn"]
[EventCountry "ENG"]
[SourceTitle "playchess.com"]
[Source "ChessBase"]
[SourceQuality "1"]
[TimeControl "40/6000+30:3000+30"]

1. d4 {[%emt 0:00:02]} d5 {[%emt 0:00:27]} 2. c4 {[%emt 0:00:09]} dxc4 {[%emt 0:00:19]} 3. e4 {[%emt 0:00:19]} e5 {[%emt 0:00:25]} 4. Nf3 {[%emt 0:00:06]} exd4 {[%emt 0:01:48]} 5. Bxc4 {[%emt 0:00:02]} Bb4+ {[%emt 0:11:00]} 6. Nbd2 {[%emt 0:00:11]} Be6 {[%emt 0:00:42]} 7. Bxe6 {[%emt 0:08:39]} fxe6 {[%emt 0:01:27]} 8. Ne5 {[%emt 0:06:23]} Bxd2+ {[%emt 0:01:46]} 9. Bxd2 {[%emt 0:00:02]} Nf6 {[%emt 0:00:11]} 10. Bb4 {[%emt 0:34:52]} Na6 {[%emt 0:08:40]} 11. Ba3 {[%emt 0:00:13]} c5 {[%emt 0:02:23]} 12. Qa4+ {[%emt 0:04:43]} Nd7 {[%emt 0:02:05]} 13. Rc1 {[%emt 0:01:45]} Rc8 {[%emt 0:20:03]} 14. O-O {[%emt 0:02:05]} Rc7 {[%emt 0:11:56]} 15. Qb5 {[%emt 0:17:48]} O-O {[%emt 0:04:21]} 16. Nxd7 {[%emt 0:03:37]} Qxd7 {[%emt 0:00:20]} 17. Qxd7 {[%emt 0:00:08]} Rxd7 {[%emt 0:00:05]} 18. Bxc5 {[%emt 0:00:04]} Nxc5 {[%emt 0:00:10]} 19. Rxc5 {[%emt 0:00:03]} Rfd8 {[%emt 0:01:44]} 20. Rd1 {[%emt 0:00:45]} Kf7 {[%emt 0:01:37]} 21. f4 {[%emt 0:13:01]} Rd6 {[%emt 0:02:05]} 22. Kf2 {[%emt 0:00:31]} Rc6 {[%emt 0:00:43]} 23. Rxc6 {[%emt 0:01:38]} bxc6 {[%emt 0:00:01]} 24. Rc1 {[%emt 0:00:13]} Rb8 {[%emt 0:01:02]} 25. b3 {[%emt 0:00:03]} Rb6 {[%emt 0:00:36]} 26. Rc4 {[%emt 0:00:37]} Ra6 {[%emt 0:00:25]} 27. a4 {[%emt 0:00:03]} e5 {[%emt 0:02:42]} 28. fxe5 {[%emt 0:00:02]} Ke6 {[%emt 0:00:10]} 29. Rxd4 {[%emt 0:00:06]} Kxe5 {[%emt 0:00:18]} 30. Rc4 {[%emt 0:14:09]} g6 {[%emt 0:01:35]} 31. Ke3 {[%emt 0:00:56]} Rb6 {[%emt 0:00:58]} 32. b4 {[%emt 0:00:02]} Kd6 {[%emt 0:00:29]} 33. Kd4 {[%emt 0:00:13]} Rb8 {[%emt 0:01:10]} 34. e5+ {[%emt 0:00:26]} Kd7 {[%emt 0:00:26]} 35. Kc5 {[%emt 0:00:51]} Re8 {[%emt 0:01:01]} 36. Rd4+ {[%emt 0:00:02]} Kc7 {[%emt 0:00:21]} 37. Re4 {[%emt 0:00:01]} Re6 {[%emt 0:00:55]} 38. h4 {[%emt 0:00:34]} h6 {[%emt 0:01:28]} 39. Re2 {[%emt 0:00:12]} Re7 {[%emt 0:05:20]} 40. e6 {[%emt 0:01:49]} g5 {[%emt 0:00:31]} 41. h5 {[%emt 0:50:46]} Re8 {[%emt 0:52:55]} 42. Re4 {[%emt 0:00:00]} Re7 {[%emt 0:00:00]} 43. g4 {[%emt 0:00:00]} Re8 {[%emt 0:00:00]} 44. Re1 {[%emt 0:00:00]} Re7 {[%emt 0:00:00]} 45. Re2 {[%emt 0:00:00]} Re8 {[%emt 0:00:00]} 46. b5 {[%emt 0:00:00]} cxb5 {[%emt 0:00:00]} 47. axb5 {[%emt 0:00:00]} Re7 {[%emt 0:00:00]} 48. Kd5 {[%emt 0:00:00]} Kd8 {[%emt 0:00:00]} 49. Ke5 {[%emt 0:00:00]} Rb7 {[%emt 0:00:00]} 50. Kf6 {[%emt 0:00:00]} Ke8 {[%emt 0:00:00]} 51. Rc2 {[%emt 0:00:00]} Rb8 {[%emt 0:00:00]} 52. Rc7 {[%emt 0:00:00]} Kf8 {[%emt 0:00:00]} 53. Rxa7 {[%emt 0:00:00]} Kg8 {[%emt 0:00:00]} 54. Kg6 {[%emt 0:00:00]} Re8 {[%emt 0:00:00]} 55. e7 {[%emt 0:00:00]} Rb8 {[%emt 0:00:00]} 56. Rb7 {[%emt 0:00:00]} Re8 {[%emt 0:00:00]} 57. Rd7 {[%emt 0:00:00]} Rb8 {[%emt 0:00:00]} 58. Rd8+ {[%emt 0:00:00]} Rxd8 {[%emt 0:00:00]} 59. exd8=R# {[%emt 0:00:00]} 1-0

[Event "4NCL 2021-22"]
[Site "England"]
[Date "2022.03.27"]
[Round "6.51"]
[White "Payne, Matthew J"]
[Black "Hill, Alistair"]
[Result "1/2-1/2"]
[ECO "B50"]
[WhiteElo "2158"]
[BlackElo "2236"]
[Annotator "ChessBase"]
[PlyCount "26"]
[EventDate "2021.11.27"]
[EventType "team-tourn"]
[EventCountry "ENG"]
[SourceTitle "playchess.com"]
[Source "ChessBase"]
[SourceQuality "1"]
[TimeControl "40/6000+30:3000+30"]

1. e4 {[%emt 0:00:06]} c5 {[%emt 0:00:04]} 2. Nc3 {[%emt 0:00:12]} e6 {[%emt 0:00:21]} 3. Nf3 {[%emt 0:00:13]} d6 {[%emt 0:11:02]} 4. d4 {[%emt 0:05:32]} cxd4 {[%emt 0:00:45]} 5. Qxd4 {[%emt 0:00:10]} a6 {[%emt 0:08:02]} 6. Be3 {[%emt 0:15:18]} Nc6 {[%emt 0:00:14]} 7. Qb6 {[%emt 0:00:19]} Nf6 {[%emt 0:32:03]} 8. O-O-O {[%emt 0:09:42]} Nd7 {[%emt 0:02:27]} 9. Qxd8+ {[%emt 0:00:45]} Kxd8 {[%emt 0:02:42]} 10. Na4 {[%emt 0:16:44]} Be7 {[%emt 0:07:11]} 11. Nb6 {[%emt 0:05:10]} Rb8 {[%emt 0:00:03]} 12. Nd2 {[%emt 0:05:50]} Nf6 {[%emt 0:02:49]} 13. Be2 {[%emt 0:09:07]} Kc7 {[%emt 0:01:05]} 1/2-1/2

[Event "4NCL 2021-22"]
[Site "England"]
[Date "2022.03.27"]
[Round "6.52"]
[White "Robertson, J Stuart"]
[Black "Bucher, Grant W"]
[Result "1/2-1/2"]
[ECO "A84"]
[WhiteElo "2174"]
[BlackElo "2060"]
[Annotator "NA"]
[PlyCount "126"]
[EventDate "2021.11.27"]
[EventType "team-tourn"]
[EventCountry "ENG"]
[SourceTitle "playchess.com"]
[Source "ChessBase"]
[SourceQuality "1"]
[TimeControl "40/6000+30:3000+30"]

1. d4 {[%emt 0:08:14]} d5 {[%emt 0:00:09]} 2. c4 {[%emt 0:00:03]} e6 {[%emt 0:00:06]} 3. Nc3 {[%emt 0:00:12]} c6 {[%emt 0:00:06]} 4. e3 {[%emt 0:00:42]} f5 {[%emt 0:00:06]} 5. Bd3 {[%emt 0:00:10]} Nf6 {[%emt 0:00:50]} 6. Nge2 {[%emt 0:00:53]} Bd6 {[%emt 0:04:51]} 7. Qc2 {[%emt 0:02:09]} Ne4 {[%emt 0:06:44]} 8. O-O {[%emt 0:01:46]} O-O {[%emt 0:01:10]} 9. f3 {[%emt 0:03:15]} Nxc3 {[%emt 0:00:09]} 10. bxc3 {[%emt 0:01:38]} b6 {[%emt 0:14:29]} 11. cxd5 {[%emt 0:07:30]} exd5 {[%emt 0:00:21]} 12. c4 {[%emt 0:01:49]} dxc4 {[%emt 0:03:25]} 13. Bxc4+ {[%emt 0:01:24]} Kh8 {[%emt 0:00:06]} 14. Bb2 {[%emt 0:01:49]} Qc7 {[%emt 0:03:42]} 15. f4 {[%emt 0:17:16]} Ba6 {[%emt 0:09:59]} 16. Ng3 {[%emt 0:03:38]} Bxc4 {[%emt 0:06:59]} 17. Qxc4 {[%emt 0:00:05]} Qf7 {[%emt 0:11:17]} 18. Qxf7 {[%emt 0:00:35]} Rxf7 {[%emt 0:00:05]} 19. Rac1 {[%emt 0:00:22]} c5 {[%emt 0:04:41]} 20. e4 {[%emt 0:03:54]} fxe4 {[%emt 0:02:15]} 21. Nxe4 {[%emt 0:01:14]} Bc7 {[%emt 0:09:15]} 22. Ng5 {[%emt 0:03:29]} Rd7 {[%emt 0:06:03]} 23. dxc5 {[%emt 0:06:51]} bxc5 {[%emt 0:03:49]} 24. f5 {[%emt 0:02:09]} Nc6 {[%emt 0:03:53]} 25. f6 {[%emt 0:01:29]} gxf6 {[%emt 0:03:30]} 26. Rxf6 {[%emt 0:01:06]} Nd4 {[%emt 0:04:48]} 27. Ne6 {[%emt 0:04:43]} Be5 {[%emt 0:01:14]} 28. Rf2 {[%emt 0:02:24]} Nxe6 {[%emt 0:03:23]} 29. Bxe5+ {[%emt 0:00:04]} Kg8 {[%emt 0:00:07]} 30. Rf6 {[%emt 0:01:55]} Re8 {[%emt 0:00:21]} 31. Rc4 {[%emt 0:02:42]} Rg7 {[%emt 0:03:26]} 32. Rxe6 {[%emt 0:02:28]} Rxe6 {[%emt 0:00:06]} 33. Bxg7 {[%emt 0:00:03]} Kxg7 {[%emt 0:00:06]} 34. Rxc5 {[%emt 0:00:02]} Ra6 {[%emt 0:00:14]} 35. Rc2 {[%emt 0:00:19]} Kf6 {[%emt 0:01:59]} 36. Re2 {[%emt 0:01:04]} Kf5 {[%emt 0:00:48]} 37. Kf2 {[%emt 0:00:13]} h5 {[%emt 0:01:33]} 38. Ke3 {[%emt 0:01:13]} Kg4 {[%emt 0:00:46]} 39. Kd4 {[%emt 0:00:35]} h4 {[%emt 0:01:38]} 40. Kc5 {[%emt 0:01:43]} h3 {[%emt 0:00:56]} 41. gxh3+ {[%emt 0:50:34]} Kxh3 {[%emt 0:50:10]} 42. Kb5 {[%emt 0:01:07]} Rh6 {[%emt 0:00:00]} 43. a4 {[%emt 0:00:00]} Kg4 {[%emt 0:00:00]} 44. Rf2 {[%emt 0:00:00]} Kg5 {[%emt 0:00:00]} 45. a5 {[%emt 0:00:00]} a6+ {[%emt 0:00:00]} 46. Kc5 {[%emt 0:00:00]} Kg4 {[%emt 0:00:00]} 47. Rd2 {[%emt 0:00:00]} Kf4 {[%emt 0:00:00]} 48. Rd6 {[%emt 0:00:00]} Rxh2 {[%emt 0:00:00]} 49. Kb6 {[%emt 0:00:00]} Ke5 {[%emt 0:00:00]} 50. Rg6 {[%emt 0:00:00]} Kd5 {[%emt 0:00:00]} 51. Kxa6 {[%emt 0:00:00]} Kc5 {[%emt 0:00:00]} 52. Rb6 {[%emt 0:00:00]} Ra2 {[%emt 0:00:00]} 53. Rb1 {[%emt 0:00:00]} Kc6 {[%emt 0:00:00]} 54. Rc1+ {[%emt 0:00:00]} Kd7 {[%emt 0:00:00]} 55. Kb6 {[%emt 0:00:00]} Rb2+ {[%emt 0:00:00]} 56. Ka7 {[%emt 0:00:00]} Rb3 {[%emt 0:00:00]} 57. a6 {[%emt 0:00:00]} Rb2 {[%emt 0:00:00]} 58. Ka8 {[%emt 0:00:00]} Ra2 {[%emt 0:00:00]} 59. a7 {[%emt 0:00:00]} Rb2 {[%emt 0:00:00]} 60. Rh1 {[%emt 0:00:00]} Kc8 {[%emt 0:00:00]} 61. Rh8+ {[%emt 0:00:00]} Kc7 {[%emt 0:00:00]} 62. Rb8 {[%emt 0:00:00]} Rc2 {[%emt 0:00:46]} 63. Rc8+ {[%emt 0:00:00]} Kxc8 {[%emt 0:00:05]} 1/2-1/2

[Event "4NCL 2021-22"]
[Site "England"]
[Date "2022.03.27"]
[Round "6.53"]
[White "Kolani, Arjun"]
[Black "Lee, Richard W Y"]
[Result "1-0"]
[ECO "C10"]
[WhiteElo "2035"]
[BlackElo "2125"]
[Annotator "NA"]
[PlyCount "75"]
[EventDate "2021.11.27"]
[EventType "team-tourn"]
[EventCountry "ENG"]
[SourceTitle "playchess.com"]
[Source "ChessBase"]
[SourceQuality "1"]
[TimeControl "40/6000+30:3000+30"]

1. e4 {[%emt 0:00:09]} e6 {[%emt 0:03:06]} 2. d4 {[%emt 0:00:12]} d5 {[%emt 0:00:14]} 3. Nc3 {[%emt 0:00:19]} dxe4 {[%emt 0:00:13]} 4. Nxe4 {[%emt 0:00:44]} Bd7 {[%emt 0:00:09]} 5. Nf3 {[%emt 0:03:10]} Bc6 {[%emt 0:00:08]} 6. Bd3 {[%emt 0:00:37]} Nd7 {[%emt 0:00:20]} 7. c3 {[%emt 0:02:54]} Ngf6 {[%emt 0:01:21]} 8. Nxf6+ {[%emt 0:10:26]} Nxf6 {[%emt 0:00:25]} 9. O-O {[%emt 0:00:24]} Bxf3 {[%emt 0:07:04]} 10. Qxf3 {[%emt 0:00:15]} c6 {[%emt 0:00:11]} 11. b3 {[%emt 0:18:43]} Be7 {[%emt 0:04:55]} 12. Bb2 {[%emt 0:03:09]} Qd5 {[%emt 0:01:57]} 13. Qe2 {[%emt 0:02:56]} Qh5 {[%emt 0:06:30]} 14. Qxh5 {[%emt 0:04:12]} Nxh5 {[%emt 0:00:02]} 15. f4 {[%emt 0:00:18]} O-O {[%emt 0:25:29]} 16. g4 {[%emt 0:16:56]} Nf6 {[%emt 0:00:13]} 17. g5 {[%emt 0:01:39]} Nd7 {[%emt 0:08:33]} 18. c4 {[%emt 0:08:48]} Rad8 {[%emt 0:02:57]} 19. Be4 {[%emt 0:13:55]} Rfe8 {[%emt 0:05:39]} 20. Bg2 {[%emt 0:03:04]} Bf8 {[%emt 0:09:12]} 21. Rad1 {[%emt 0:02:53]} Nb6 {[%emt 0:02:51]} 22. a4 {[%emt 0:01:49]} Nc8 {[%emt 0:07:04]} 23. d5 {[%emt 0:04:34]} exd5 {[%emt 0:01:09]} 24. cxd5 {[%emt 0:00:15]} cxd5 {[%emt 0:00:46]} 25. Bxd5 {[%emt 0:01:34]} Bc5+ {[%emt 0:01:11]} 26. Kh1 {[%emt 0:01:27]} Nd6 {[%emt 0:03:19]} 27. f5 {[%emt 0:02:32]} Re2 {[%emt 0:06:27]} 28. Bc3 {[%emt 0:03:10]} Rde8 {[%emt 0:04:49]} 29. g6 {[%emt 0:02:45]} Rc2 {[%emt 0:04:55]} 30. Be1 {[%emt 0:01:06]} h6 {[%emt 0:03:19]} 31. Bg3 {[%emt 0:00:17]} Kf8 {[%emt 0:00:45]} 32. Bg2 {[%emt 0:00:38]} Ne4 {[%emt 0:00:32]} 33. Bxe4 {[%emt 0:00:15]} Rxe4 {[%emt 0:00:09]} 34. f6 {[%emt 0:00:34]} fxg6 {[%emt 0:00:42]} 35. Rd8+ {[%emt 0:00:25]} Kf7 {[%emt 0:00:18]} 36. Rd7+ {[%emt 0:00:16]} Kg8 {[%emt 0:01:00]} 37. f7+ {[%emt 0:00:30]} Kh7 {[%emt 0:00:10]} 38. Rc7 {[%emt 0:00:27]} 1-0

[Event "4NCL 2021-22"]
[Site "England"]
[Date "2022.03.27"]
[Round "6.54"]
[White "Stewart, Ashley"]
[Black "Graham, David B"]
[Result "1-0"]
[ECO "A36"]
[WhiteElo "2062"]
[BlackElo "2128"]
[Annotator "NA"]
[PlyCount "131"]
[EventDate "2021.11.27"]
[EventType "team-tourn"]
[EventCountry "ENG"]
[SourceTitle "playchess.com"]
[Source "ChessBase"]
[SourceQuality "1"]
[TimeControl "40/6000+30:3000+30"]

1. c4 {[%emt 0:00:04]} g6 {[%emt 0:00:04]} 2. Nc3 {[%emt 0:00:33]} Bg7 {[%emt 0:00:06]} 3. g3 {[%emt 0:00:11]} d6 {[%emt 0:00:11]} 4. Bg2 {[%emt 0:00:25]} c5 {[%emt 0:00:12]} 5. Nf3 {[%emt 0:00:23]} Nc6 {[%emt 0:00:11]} 6. O-O {[%emt 0:00:27]} e6 {[%emt 0:01:11]} 7. a3 {[%emt 0:00:49]} Nge7 {[%emt 0:00:29]} 8. Rb1 {[%emt 0:01:04]} O-O {[%emt 0:00:24]} 9. b4 {[%emt 0:00:46]} b6 {[%emt 0:01:10]} 10. Qa4 {[%emt 0:02:54]} Bb7 {[%emt 0:03:13]} 11. Bb2 {[%emt 0:00:44]} Qd7 {[%emt 0:04:24]} 12. e3 {[%emt 0:06:54]} Rfd8 {[%emt 0:02:53]} 13. d3 {[%emt 0:33:07]} Rac8 {[%emt 0:16:49]} 14. Ne4 {[%emt 0:00:00]} Ne5 {[%emt 0:19:01]} 15. Qxd7 {[%emt 0:00:00]} Rxd7 {[%emt 0:00:09]} 16. Nxe5 {[%emt 0:08:41]} dxe5 {[%emt 0:00:21]} 17. bxc5 {[%emt 0:03:43]} Bxe4 {[%emt 0:03:54]} 18. Bxe4 {[%emt 0:01:03]} bxc5 {[%emt 0:07:42]} 19. Rfd1 {[%emt 0:12:12]} Rcd8 {[%emt 0:02:20]} 20. Bc3 {[%emt 0:05:45]} f5 {[%emt 0:04:00]} 21. Ba5 {[%emt 0:02:35]} Rf8 {[%emt 0:13:39]} 22. Bg2 {[%emt 0:03:47]} f4 {[%emt 0:05:04]} 23. Be4 {[%emt 0:06:54]} fxe3 {[%emt 0:03:14]} 24. fxe3 {[%emt 0:00:01]} Bh6 {[%emt 0:00:31]} 25. Bd2 {[%emt 0:03:08]} Nf5 {[%emt 0:00:20]} 26. Re1 {[%emt 0:00:54]} Rfd8 {[%emt 0:08:25]} 27. g4 {[%emt 0:05:36]} Nd6 {[%emt 0:01:17]} 28. Bc6 {[%emt 0:00:07]} Rf7 {[%emt 0:02:02]} 29. Ba5 {[%emt 0:04:01]} Rdf8 {[%emt 0:03:16]} 30. Re2 {[%emt 0:00:44]} e4 {[%emt 0:03:40]} 31. Bxe4 {[%emt 0:01:00]} Nxe4 {[%emt 0:00:05]} 32. dxe4 {[%emt 0:00:01]} Rd7 {[%emt 0:01:01]} 33. Rb3 {[%emt 0:01:10]} Rd1+ {[%emt 0:00:32]} 34. Re1 {[%emt 0:01:32]} Rfd8 {[%emt 0:01:42]} 35. Rxd1 {[%emt 0:04:53]} Rxd1+ {[%emt 0:00:05]} 36. Kf2 {[%emt 0:00:19]} Bg5 {[%emt 0:02:56]} 37. Ke2 {[%emt 0:01:51]} Rh1 {[%emt 0:01:06]} 38. Bc7 {[%emt 0:00:31]} Rg1 {[%emt 0:01:04]} 39. Kf3 {[%emt 0:00:36]} Rf1+ {[%emt 0:00:23]} 40. Ke2 {[%emt 0:00:24]} Rg1 {[%emt 0:00:40]} 41. Bg3 {[%emt 0:13:19]} Rc1 {[%emt 0:08:52]} 42. Rb8+ {[%emt 0:09:39]} Kg7 {[%emt 0:02:21]} 43. Rb7+ {[%emt 0:02:35]} Kg8 {[%emt 0:00:52]} 44. Kd3 {[%emt 0:02:17]} Rd1+ {[%emt 0:03:50]} 45. Kc2 {[%emt 0:01:52]} Rd8 {[%emt 0:00:08]} 46. Rxa7 {[%emt 0:05:50]} Bxe3 {[%emt 0:01:50]} 47. a4 {[%emt 0:04:03]} Rd2+ {[%emt 0:10:59]} 48. Kc3 {[%emt 0:00:19]} Ra2 {[%emt 0:00:26]} 49. Kb3 {[%emt 0:00:12]} Ra1 {[%emt 0:00:21]} 50. Be5 {[%emt 0:03:20]} Rb1+ {[%emt 0:04:18]} 51. Kc2 {[%emt 0:00:42]} Rc1+ {[%emt 0:01:53]} 52. Kd3 {[%emt 0:01:55]} Bd4 {[%emt 0:00:38]} 53. Bxd4 {[%emt 0:02:10]} Rd1+ {[%emt 0:00:04]} 54. Kc3 {[%emt 0:02:08]} cxd4+ {[%emt 0:02:40]} 55. Kb4 {[%emt 0:02:31]} Rb1+ {[%emt 0:03:15]} 56. Kc5 {[%emt 0:00:08]} e5 {[%emt 0:00:13]} 57. Rd7 {[%emt 0:01:26]} Ra1 {[%emt 0:00:30]} 58. Kb5 {[%emt 0:01:26]} Rb1+ {[%emt 0:00:07]} 59. Kc6 {[%emt 0:00:12]} Rb4 {[%emt 0:00:14]} 60. c5 {[%emt 0:00:44]} Rxa4 {[%emt 0:00:40]} 61. Kb5 {[%emt 0:01:06]} Ra1 {[%emt 0:01:23]} 62. c6 {[%emt 0:00:33]} Rb1+ {[%emt 0:00:19]} 63. Ka6 {[%emt 0:00:34]} Kf8 {[%emt 0:02:04]} 64. c7 {[%emt 0:00:52]} Ra1+ {[%emt 0:00:11]} 65. Kb5 {[%emt 0:00:15]} Rb1+ {[%emt 0:00:37]} 66. Ka4 {[%emt 0:00:18]} 1-0